fUSD/lending_fUSD_20240423
["ID","MTS","AMOUNT","RATE_DAILY","PERIOD"]
[323305220,1713882717261,-6531.6262482,0.000257,4]
[323305221,1713882717288,-3844.90592872,0.000257,3]
[323305222,1713882717315,-338.05830753,0.000257,2]
[323305223,1713882717342,-208.38272555,0.000257,7]
[323305224,1713882717370,-205.36039041,0.000257,5]
[323305225,1713882717397,-11539.6992686,0.000257,2]
[323305226,1713882717424,-13000.0,0.000257,2]
[323305227,1713882717450,-1006.90283681,0.000257,2]
[323305228,1713882717477,-13688.43452747,0.000257,2]
[323305229,1713882717504,-214.52330656,0.000257,2]
[323305230,1713882717531,-1006.02737044,0.000257,2]
[323305231,1713882717558,-23111.65653845,0.000257,2]
[323305232,1713882717585,-5003.90118204,0.000257,2]
[323305233,1713882717613,-8000.0,0.000257,12]
[323305234,1713882717641,-17489.83123993,0.000257,2]
[323305235,1713882717669,-4225.72203535,0.000257,2]
[323305236,1713882717697,-30094.92616206,0.000257,7]
[323305237,1713882717726,-51765.37025461,0.000257,7]
[323305238,1713882717754,-368.02301478,0.000257,5]
[323305239,1713882717782,-620326.46590436,0.000257,7]
[323305240,1713882802575,1573.78,0.00011074,2]
[323305241,1713882847785,526.99,0.00011024,2]
[323305242,1713882900319,2000.0,0.00010992,3]
[323305243,1713882903763,162.34,0.00010992,2]
[323305244,1713882999139,500.0,0.00010935,2]
[323305245,1713883006765,152.33,0.00010935,2]
[323305246,1713883006979,152.33,0.00010939,2]
[323305247,1713883007295,152.33,0.00010943,2]
[323305248,1713883007517,152.33,0.00010947,2]
[323305249,1713883008171,152.33,0.00010951,2]
[323305250,1713883008398,152.33,0.00010955,2]
[323305251,1713883008643,152.33,0.00010959,2]
[323305252,1713883009194,152.33,0.00010963,2]
[323305253,1713883009276,152.33,0.00010967,2]
[323305254,1713883009417,152.33,0.00010971,2]
[323305255,1713883009653,152.33,0.00010975,2]
[323305256,1713883009893,152.33,0.00010979,2]
[323305257,1713883010168,152.33,0.00010982,2]
[323305258,1713883010595,152.33,0.00010986,2]
[323305259,1713883010841,152.33,0.0001099,2]
[323305260,1713883093552,1231.178286,0.00011169,2]
[323305261,1713883094887,1300.07738684,0.0001115,2]
[323305262,1713883137785,402.72,8.998e-05,2]
[323305263,1713883237939,156.76,0.0001097,2]
[323305264,1713883238183,156.76,0.00011113,2]
[323305265,1713883300581,1048.85,0.00010872,2]
[323305491,1713883360118,637.63,0.00010892,2]
[323305493,1713883360143,23262.37,0.00010892,2]
[323305858,1713883389249,1000.0,0.00010869,2]
[323306257,1713883750855,382.58,8.998e-05,2]
[323306324,1713883761287,-155.0,0.000112,2]
[323306334,1713883777870,698.9,0.00010916,2]
[323306367,1713883831563,-155.0,0.00011255,2]
[323306368,1713883831574,-156.76,0.00011256,2]
[323306369,1713883831585,-145.41593694,0.00011262,2]
[323306370,1713883831597,-237.16406306,0.00011262,2]
[323306371,1713883831606,-160.88363954,0.00011287,2]
[323306372,1713883831616,-156.76,0.00011399,2]
[323306373,1713883831626,-275.27918838,0.00011405,2]
[323306374,1713883831651,-66.29701162,0.00011405,2]
[323306375,1713883831661,-1001.62673309,0.00011506,2]
[323306376,1713883831673,-99.08790577,0.00011506,2]
[323306377,1713883831682,-150.0,0.00011541,2]
[323306378,1713883831691,-156.76,0.00011542,2]
[323306379,1713883831700,-215.92356355,0.00011542,2]
[323306380,1713883831711,-1383.97785601,0.00011542,2]
[323306381,1713883831723,-450.25,0.00011542,2]
[323306382,1713883831735,-1461.97858044,0.00011542,2]
[323306383,1713883831746,-150.99,0.00011542,2]
[323306384,1713883831756,-150.99,0.00011542,2]
[323306385,1713883831767,-499.99,0.00011613,2]
[323306386,1713883831776,-1573.65,0.00011613,2]
[323306387,1713883831785,-463.5859,0.00011638,2]
[323306388,1713883831794,-425.7426,0.00011638,2]
[323306389,1713883831803,-4238.2775,0.00011639,2]
[323306390,1713883831813,-520.4098,0.00011639,2]
[323306391,1713883831822,-334.04599527,0.00011639,2]
[323306392,1713883831831,-10044.7441,0.0001164,2]
[323306393,1713883831840,-1000.0,0.0001164,2]
[323306394,1713883831848,-6223.86464899,0.0001164,2]
[323306395,1713883831860,-994.06607205,0.0001164,2]
[323306396,1713883831875,-535.511,0.0001164,2]
[323306398,1713883831886,-336.06029551,0.0001164,2]
[323306404,1713883831932,-1910.49798345,0.0001164,2]
[323306406,1713883831941,-2105.89871355,0.0001164,2]
[323306410,1713883831965,-791.24822385,0.0001164,2]
[323306500,1713883832936,878.79,0.0001,2]
[323306635,1713883837470,-3062.67819403,0.0001164,2]
[323306640,1713883837532,-1383.96527538,0.0001164,2]
[323306642,1713883837544,-1744.90809319,0.0001164,2]
[323306644,1713883837553,-250.0,0.000117,2]
[323306646,1713883837563,-250.0,0.000117,2]
[323306648,1713883837573,-250.0,0.000117,2]
[323306649,1713883837582,-262.8,0.000117,2]
[323306651,1713883837592,-155.0,0.00011736,2]
[323306653,1713883837602,-234.00562734,0.00011737,2]
[323306657,1713883837635,-0.81358871,0.00011737,2]
[323306658,1713883837645,-155.14111364,0.00011737,2]
[323306660,1713883837655,-155.0,0.00011737,2]
[323306662,1713883837665,-171.86159413,0.00011737,2]
[323306664,1713883837677,-773.26,0.00011737,2]
[323306666,1713883837688,-500.0,0.00011737,2]
[323306668,1713883837698,-500.0,0.00011737,2]
[323306669,1713883837707,-343.54967955,0.00011737,2]
[323306671,1713883837716,-203.86541058,0.00011738,2]
[323306673,1713883837726,-510.35,0.00011738,2]
[323306675,1713883837735,-500.0,0.00011738,2]
[323306677,1713883837744,-283.03519767,0.00011738,2]
[323306679,1713883837754,-500.0,0.00011738,2]
[323306680,1713883837763,-500.0,0.00011738,2]
[323306681,1713883837772,-500.0,0.00011738,2]
[323306682,1713883837781,-500.0,0.00011738,2]
[323306683,1713883837791,-941.16,0.00011738,2]
[323306684,1713883837800,-502.68190211,0.00011738,2]
[323306685,1713883837810,-678.81,0.00011738,2]
[323306687,1713883837820,-503.27949879,0.00011738,2]
[323306690,1713883837829,-500.0,0.00011738,2]
[323306693,1713883837838,-459.25377494,0.00011738,2]
[323306697,1713883837850,-386.15622506,0.00011738,2]
[323306699,1713883837859,-1023.48,0.00011738,2]
[323306702,1713883837868,-500.0,0.00011738,2]
[323306705,1713883837878,-500.0,0.00011738,2]
[323306708,1713883837887,-694.57,0.00011738,2]
[323306711,1713883837896,-500.0,0.00011738,2]
[323306714,1713883837905,-500.0,0.00011738,2]
[323306717,1713883837914,-500.0,0.00011738,2]
[323306720,1713883837925,-678.08,0.00011738,2]
[323306723,1713883837934,-504.08,0.00011738,2]
[323306726,1713883837943,-172.68379494,0.00011738,2]
[323306731,1713883837956,-473.98620506,0.00011738,2]
[323306734,1713883837965,-560.54875748,0.00011738,2]
[323306736,1713883837974,-388.13965421,0.00011738,2]
[323306738,1713883837983,-500.0,0.00011738,2]
[323306740,1713883837993,-503.84055438,0.00011738,2]
[323306742,1713883838002,-500.0,0.00011738,2]
[323306744,1713883838011,-582.92978436,0.00011738,2]
[323306746,1713883838020,-500.0,0.00011738,2]
[323306748,1713883838029,-500.0,0.00011738,2]
[323306750,1713883838038,-500.0,0.00011738,2]
[323306752,1713883838047,-500.0,0.00011738,2]
[323306753,1713883838055,-500.0,0.00011738,2]
[323306754,1713883838064,-500.0,0.00011738,2]
[323306755,1713883838072,-500.0,0.00011738,2]
[323306756,1713883838081,-442.64500243,0.00011738,2]
[323306757,1713883838090,-500.0,0.00011738,2]
[323306758,1713883838099,-500.0,0.00011738,2]
[323306759,1713883838107,-517.06,0.00011738,2]
[323306760,1713883838116,-500.0,0.00011738,2]
[323306761,1713883838125,-500.0,0.00011738,2]
[323306762,1713883838134,-557.33838369,0.00011738,2]
[323306763,1713883838142,-500.0,0.00011738,2]
[323306764,1713883838151,-500.0,0.00011738,2]
[323306766,1713883838160,-500.0,0.00011738,2]
[323306768,1713883838172,-674.17,0.00011738,2]
[323306770,1713883838180,-167.46831454,0.00011738,2]
[323306773,1713883838192,-332.53168546,0.00011738,2]
[323306775,1713883838201,-500.0,0.00011738,2]
[323306777,1713883838210,-500.0,0.00011738,2]
[323306779,1713883838218,-500.0,0.00011738,2]
[323306781,1713883838227,-500.0,0.00011738,2]
[323306782,1713883838236,-500.0,0.00011738,2]
[323306784,1713883838246,-500.0,0.00011738,2]
[323306786,1713883838255,-500.0,0.00011738,2]
[323306788,1713883838264,-473.35,0.00011738,2]
[323306790,1713883838274,-506.44185873,0.00011738,2]
[323306792,1713883838283,-150.0,0.00011738,2]
[323306794,1713883838293,-138.67645681,0.00011738,2]
[323306797,1713883838304,-361.32354319,0.00011738,2]
[323306799,1713883838313,-503.41244081,0.00011738,2]
[323306801,1713883838322,-444.40863314,0.00011738,2]
[323306803,1713883838333,-55.59136686,0.00011738,2]
[323306805,1713883838342,-579.25650279,0.00011738,2]
[323306807,1713883838353,-537.98,0.00011738,2]
[323306809,1713883838363,-500.0,0.00011738,2]
[323306811,1713883838372,-576.79637816,0.00011738,2]
[323306813,1713883838381,-500.0,0.00011738,2]
[323306815,1713883838391,-500.0,0.00011738,2]
[323306817,1713883838400,-500.0,0.00011738,2]
[323306819,1713883838410,-500.0,0.00011738,2]
[323306821,1713883838419,-581.80358373,0.00011738,2]
[323306823,1713883838429,-500.0,0.00011738,2]
[323306825,1713883838438,-500.0,0.00011738,2]
[323306827,1713883838448,-500.0,0.00011738,2]
[323306828,1713883838458,-500.0,0.00011738,2]
[323306830,1713883838467,-500.0,0.00011738,2]
[323306833,1713883838476,-500.0,0.00011738,2]
[323306834,1713883838486,-500.0,0.00011738,2]
[323306836,1713883838495,-500.0,0.00011738,2]
[323306838,1713883838503,-500.0,0.00011738,2]
[323306840,1713883838513,-500.0,0.00011738,2]
[323306842,1713883838522,-500.0,0.00011738,2]
[323306844,1713883838531,-18.57216846,0.00011738,2]
[323306847,1713883838544,-481.42783154,0.00011738,2]
[323306849,1713883838553,-500.0,0.00011738,2]
[323306851,1713883838562,-500.0,0.00011738,2]
[323306853,1713883838571,-500.0,0.00011738,2]
[323306855,1713883838580,-500.0,0.00011738,2]
[323306856,1713883838589,-500.0,0.00011738,2]
[323306858,1713883838599,-500.0,0.00011738,2]
[323306860,1713883838608,-500.0,0.00011738,2]
[323306863,1713883838617,-500.0,0.00011738,2]
[323306864,1713883838626,-500.0,0.00011738,2]
[323306866,1713883838635,-500.0,0.00011738,2]
[323306868,1713883838644,-500.0,0.00011738,2]
[323306870,1713883838654,-500.0,0.00011738,2]
[323306873,1713883838663,-500.0,0.00011738,2]
[323306874,1713883838674,-500.0,0.00011738,2]
[323306876,1713883838683,-234.67216846,0.00011738,2]
[323306879,1713883838695,-265.32783154,0.00011738,2]
[323306881,1713883838703,-500.0,0.00011738,2]
[323306883,1713883838712,-500.0,0.00011738,2]
[323306885,1713883838720,-500.0,0.00011738,2]
[323306887,1713883838729,-500.0,0.00011738,2]
[323306889,1713883838738,-500.0,0.00011738,2]
[323306891,1713883838747,-500.0,0.00011738,2]
[323306893,1713883838756,-500.0,0.00011738,2]
[323306894,1713883838765,-108.57216846,0.00011738,2]
[323306897,1713883838777,-391.42783154,0.00011738,2]
[323306899,1713883838786,-280.41216846,0.00011738,2]
[323306906,1713883838845,-219.58783154,0.00011738,2]
[323306908,1713883838854,-500.0,0.00011738,2]
[323306910,1713883838863,-178.84100401,0.00011738,2]
[323306912,1713883838872,-500.0,0.00011738,2]
[323306914,1713883838882,-500.0,0.00011738,2]
[323306916,1713883838892,-500.0,0.00011738,2]
[323306918,1713883838901,-500.0,0.00011738,2]
[323306920,1713883838911,-500.0,0.00011738,2]
[323306922,1713883838923,-575.4,0.00011738,2]
[323306924,1713883838932,-500.0,0.00011738,2]
[323306926,1713883838941,-500.0,0.00011738,2]
[323306928,1713883838950,-500.0,0.00011738,2]
[323306930,1713883838960,-500.0,0.00011738,2]
[323306932,1713883838969,-772.67,0.00011738,2]
[323306934,1713883838978,-518.7,0.00011738,2]
[323306936,1713883838987,-500.0,0.00011738,2]
[323306938,1713883838996,-500.0,0.00011738,2]
[323306940,1713883839005,-500.0,0.00011738,2]
[323306942,1713883839014,-500.0,0.00011738,2]
[323306944,1713883839023,-750.82,0.00011738,2]
[323306946,1713883839032,-500.0,0.00011738,2]
[323306948,1713883839042,-500.0,0.00011738,2]
[323306951,1713883839052,-500.0,0.00011738,2]
[323306952,1713883839061,-500.0,0.00011738,2]
[323306954,1713883839075,-500.0,0.00011738,2]
[323306956,1713883839084,-500.0,0.00011738,2]
[323306958,1713883839093,-500.0,0.00011738,2]
[323306960,1713883839102,-43.1712523,0.00011738,2]
[323306963,1713883839114,-456.8287477,0.00011738,2]
[323306965,1713883839122,-500.0,0.00011738,2]
[323306967,1713883839132,-500.0,0.00011738,2]
[323306969,1713883839140,-500.0,0.00011738,2]
[323306971,1713883839150,-166.64000598,0.00011738,2]
[323306974,1713883839177,-333.35999402,0.00011738,2]
[323306976,1713883839186,-610.51,0.00011738,2]
[323306978,1713883839195,-500.0,0.00011738,2]
[323306980,1713883839204,-500.0,0.00011738,2]
[323306982,1713883839213,-1035.94,0.00011738,2]
[323306984,1713883839222,-500.0,0.00011738,2]
[323306986,1713883839232,-500.0,0.00011738,2]
[323306988,1713883839241,-500.0,0.00011738,2]
[323306990,1713883839250,-500.0,0.00011738,2]
[323306992,1713883839260,-500.0,0.00011738,2]
[323306995,1713883839270,-500.0,0.00011738,2]
[323306997,1713883839279,-500.0,0.00011738,2]
[323306999,1713883839288,-500.0,0.00011738,2]
[323307000,1713883839297,-500.0,0.00011738,2]
[323307003,1713883839307,-500.0,0.00011738,2]
[323307005,1713883839316,-500.0,0.00011738,2]
[323307007,1713883839326,-500.0,0.00011738,2]
[323307008,1713883839336,-500.0,0.00011738,2]
[323307011,1713883839346,-500.0,0.00011738,2]
[323307013,1713883839358,-500.0,0.00011738,2]
[323307015,1713883839367,-500.0,0.00011738,2]
[323307017,1713883839376,-500.0,0.00011738,2]
[323307019,1713883839385,-500.0,0.00011738,2]
[323307021,1713883839395,-500.0,0.00011738,2]
[323307023,1713883839404,-555.07,0.00011738,2]
[323307026,1713883839414,-500.0,0.00011738,2]
[323307028,1713883839430,-500.0,0.00011738,2]
[323307029,1713883839465,-2258.81233067,0.00011738,2]
[323307067,1713883839803,159.49,0.00011148,2]
[323307084,1713883839956,-534.01,0.00011737,2]
[323307086,1713883839965,-902.03529429,0.00011738,2]
[323307089,1713883839976,-1998.5,0.00011738,2]
[323307091,1713883839987,-1076.05428458,0.00011738,2]
[323307093,1713883839998,-1927.64577303,0.00011738,2]
[323307110,1713883840245,-1785.71493991,0.00011738,2]
[323307112,1713883840257,-2789.31709129,0.00011738,2]
[323307114,1713883840269,-69.11028623,0.00011738,2]
[323307116,1713883840279,-500.0,0.00011738,2]
[323307118,1713883840289,-332.35065741,0.00011738,2]
[323307120,1713883840301,-167.64934259,0.00011738,2]
[323307122,1713883840311,-406.30784741,0.00011738,2]
[323307125,1713883840323,-93.69215259,0.00011738,2]
[323307126,1713883840334,-500.0,0.00011738,2]
[323307128,1713883840348,-145.09718501,0.00011738,2]
[323307131,1713883840360,-354.90281499,0.00011738,2]
[323307133,1713883840369,-356.8954509,0.00011738,2]
[323307135,1713883840381,-143.1045491,0.00011738,2]
[323307137,1713883840392,-185.29719659,0.00011738,2]
[323307139,1713883840405,-314.70280341,0.00011738,2]
[323307141,1713883840415,-500.0,0.00011738,2]
[323307143,1713883840428,-213.74019659,0.00011738,2]
[323307145,1713883840440,-286.25980341,0.00011738,2]
[323307147,1713883840450,-355.92893645,0.00011738,2]
[323307150,1713883840472,-218.82106355,0.00011738,2]
[323307152,1713883840482,-500.0,0.00011738,2]
[323307154,1713883840491,-500.0,0.00011738,2]
[323307156,1713883840501,-498.63538011,0.00011738,2]
[323307158,1713883840510,-500.0,0.00011738,2]
[323307160,1713883840520,-500.0,0.00011738,2]
[323307162,1713883840530,-625.24355634,0.00011738,2]
[323307175,1713883840648,-721.82644366,0.00011738,2]
[323307177,1713883840657,-500.0,0.00011738,2]
[323307179,1713883840667,-500.0,0.00011738,2]
[323307180,1713883840681,-500.0,0.00011738,2]
[323307183,1713883840691,-500.0,0.00011738,2]
[323307185,1713883840701,-500.0,0.00011738,2]
[323307187,1713883840711,-505.95,0.00011738,2]
[323307189,1713883840722,-500.0,0.00011738,2]
[323307191,1713883840732,-500.0,0.00011738,2]
[323307193,1713883840743,-624.32,0.00011738,2]
[323307194,1713883840753,-493.54100633,0.00011738,2]
[323307499,1713883843067,-943.33,0.00011737,2]
[323307502,1713883843076,-500.0,0.00011737,2]
[323307504,1713883843086,-6.45899367,0.00011738,2]
[323307506,1713883843095,-500.0,0.00011738,2]
[323307509,1713883843104,-123.85100633,0.00011738,2]
[323307512,1713883843126,-376.14899367,0.00011738,2]
[323307514,1713883843136,-794.5,0.00011738,2]
[323307516,1713883843146,-500.0,0.00011738,2]
[323307518,1713883843155,-500.0,0.00011738,2]
[323307520,1713883843164,-500.0,0.00011738,2]
[323307522,1713883843174,-500.0,0.00011738,2]
[323307524,1713883843183,-500.0,0.00011738,2]
[323307526,1713883843192,-576.39205073,0.00011738,2]
[323307528,1713883843201,-500.0,0.00011738,2]
[323307530,1713883843210,-500.0,0.00011738,2]
[323307532,1713883843219,-500.0,0.00011738,2]
[323307534,1713883843228,-500.0,0.00011738,2]
[323307536,1713883843238,-500.0,0.00011738,2]
[323307538,1713883843247,-500.0,0.00011738,2]
[323307540,1713883843256,-1494.91,0.00011738,2]
[323307542,1713883843265,-500.0,0.00011738,2]
[323307544,1713883843275,-500.0,0.00011738,2]
[323307546,1713883843284,-500.0,0.00011738,2]
[323307548,1713883843293,-500.0,0.00011738,2]
[323307550,1713883843303,-500.0,0.00011738,2]
[323307552,1713883843312,-500.0,0.00011738,2]
[323307554,1713883843321,-500.0,0.00011738,2]
[323307556,1713883843330,-500.0,0.00011738,2]
[323307558,1713883843339,-566.2,0.00011738,2]
[323307560,1713883843348,-500.0,0.00011738,2]
[323307562,1713883843362,-500.0,0.00011738,2]
[323307564,1713883843371,-500.0,0.00011738,2]
[323307566,1713883843380,-500.0,0.00011738,2]
[323307568,1713883843389,-500.0,0.00011738,2]
[323307570,1713883843399,-646.79,0.00011738,2]
[323307572,1713883843408,-500.0,0.00011738,2]
[323307574,1713883843417,-500.0,0.00011738,2]
[323307575,1713883843427,-500.0,0.00011738,2]
[323307577,1713883843437,-500.0,0.00011738,2]
[323307579,1713883843446,-500.0,0.00011738,2]
[323307581,1713883843455,-538.49,0.00011738,2]
[323307583,1713883843464,-500.0,0.00011738,2]
[323307585,1713883843473,-506.62,0.00011738,2]
[323307587,1713883843483,-500.0,0.00011738,2]
[323307589,1713883843492,-500.0,0.00011738,2]
[323307591,1713883843501,-785.16,0.00011738,2]
[323307593,1713883843511,-500.0,0.00011738,2]
[323307595,1713883843520,-500.0,0.00011738,2]
[323307597,1713883843530,-593.4,0.00011738,2]
[323307599,1713883843540,-6977.5,0.00011738,2]
[323307601,1713883843551,-500.0,0.00011738,2]
[323307603,1713883843560,-500.0,0.00011738,2]
[323307605,1713883843571,-500.0,0.00011738,2]
[323307607,1713883843581,-500.0,0.00011738,2]
[323307609,1713883843591,-500.0,0.00011738,2]
[323307611,1713883843600,-500.0,0.00011738,2]
[323307613,1713883843610,-500.0,0.00011738,2]
[323307615,1713883843619,-500.0,0.00011738,2]
[323307616,1713883843628,-500.0,0.00011738,2]
[323307617,1713883843636,-545.84,0.00011738,2]
[323307618,1713883843645,-500.0,0.00011738,2]
[323307619,1713883843655,-500.0,0.00011738,2]
[323307620,1713883843664,-500.0,0.00011738,2]
[323307621,1713883843675,-695.12,0.00011738,2]
[323307622,1713883843684,-500.0,0.00011738,2]
[323307623,1713883843694,-500.0,0.00011738,2]
[323307625,1713883843703,-500.0,0.00011738,2]
[323307627,1713883843712,-16290.39,0.00011738,2]
[323307628,1713883843721,-500.0,0.00011738,2]
[323307631,1713883843733,-500.0,0.00011738,2]
[323307633,1713883843743,-500.0,0.00011738,2]
[323307635,1713883843752,-500.0,0.00011738,2]
[323307637,1713883843762,-500.0,0.00011738,2]
[323307639,1713883843772,-500.0,0.00011738,2]
[323307640,1713883843780,-500.0,0.00011738,2]
[323307643,1713883843791,-784.9,0.00011738,2]
[323307645,1713883843803,-500.0,0.00011738,2]
[323307646,1713883843813,-576.62,0.00011738,2]
[323307649,1713883843823,-500.0,0.00011738,2]
[323307651,1713883843832,-500.0,0.00011738,2]
[323307652,1713883843842,-500.0,0.00011738,2]
[323307655,1713883843852,-500.0,0.00011738,2]
[323307657,1713883843862,-500.0,0.00011738,2]
[323307659,1713883843871,-620.1,0.00011738,2]
[323307661,1713883843881,-500.0,0.00011738,2]
[323307663,1713883843889,-500.0,0.00011738,2]
[323307664,1713883843899,-500.0,0.00011738,2]
[323307666,1713883843908,-500.0,0.00011738,2]
[323307668,1713883843917,-500.0,0.00011738,2]
[323307670,1713883843928,-716.65,0.00011738,2]
[323307672,1713883843938,-500.0,0.00011738,2]
[323307674,1713883843947,-908.38,0.00011738,2]
[323307676,1713883843956,-460.23540016,0.00011738,2]
[323307678,1713883843966,-926.75,0.00011738,2]
[323307680,1713883843975,-500.0,0.00011738,2]
[323307683,1713883843984,-500.0,0.00011738,2]
[323307684,1713883843993,-500.0,0.00011738,2]
[323307686,1713883844002,-528.87,0.00011738,2]
[323307688,1713883844011,-896.5,0.00011738,2]
[323307690,1713883844020,-500.0,0.00011738,2]
[323307693,1713883844030,-500.0,0.00011738,2]
[323307695,1713883844039,-150.0,0.00011738,2]
[323307696,1713883844048,-500.0,0.00011738,2]
[323307699,1713883844058,-648.4697,0.00011738,2]
[323307701,1713883844067,-500.0,0.00011738,2]
[323307703,1713883844076,-446.57315614,0.00011738,2]
[323307705,1713883844085,-500.0,0.00011738,2]
[323307707,1713883844093,-500.0,0.00011738,2]
[323307709,1713883844102,-500.0,0.00011738,2]
[323307710,1713883844112,-500.0,0.00011738,2]
[323307713,1713883844121,-500.0,0.00011738,2]
[323307714,1713883844130,-500.0,0.00011738,2]
[323307717,1713883844139,-501.50594883,0.00011738,2]
[323307719,1713883844149,-500.0,0.00011738,2]
[323307720,1713883844158,-500.0,0.00011738,2]
[323307722,1713883844167,-627.02141159,0.00011738,2]
[323307724,1713883844178,-500.0,0.00011738,2]
[323307726,1713883844188,-501.80297236,0.00011738,2]
[323307728,1713883844197,-500.0,0.00011738,2]
[323307730,1713883844206,-500.0,0.00011738,2]
[323307732,1713883844216,-2302.54,0.00011738,2]
[323307734,1713883844225,-500.0,0.00011738,2]
[323307737,1713883844234,-500.0,0.00011738,2]
[323307739,1713883844243,-1845.41,0.00011738,2]
[323307741,1713883844253,-500.0,0.00011738,2]
[323307743,1713883844262,-500.0,0.00011738,2]
[323307744,1713883844271,-500.0,0.00011738,2]
[323307746,1713883844280,-502.79267952,0.00011738,2]
[323307748,1713883844289,-500.0,0.00011738,2]
[323307750,1713883844299,-500.0,0.00011738,2]
[323307752,1713883844308,-500.0,0.00011738,2]
[323307754,1713883844317,-500.0,0.00011738,2]
[323307756,1713883844327,-501.45294476,0.00011738,2]
[323307759,1713883844337,-500.0,0.00011738,2]
[323307760,1713883844347,-503.79223393,0.00011738,2]
[323307762,1713883844358,-500.0,0.00011738,2]
[323307764,1713883844368,-500.0,0.00011738,2]
[323307766,1713883844378,-500.0,0.00011738,2]
[323307768,1713883844387,-500.0,0.00011738,2]
[323307770,1713883844396,-500.0,0.00011738,2]
[323307772,1713883844405,-500.0,0.00011738,2]
[323307774,1713883844414,-500.0,0.00011738,2]
[323307776,1713883844426,-2149.57,0.00011738,2]
[323307778,1713883844438,-500.0,0.00011738,2]
[323307780,1713883844447,-500.0,0.00011738,2]
[323307782,1713883844456,-500.0,0.00011738,2]
[323307783,1713883844466,-500.0,0.00011738,2]
[323307785,1713883844474,-868.04,0.00011738,2]
[323307786,1713883844483,-500.0,0.00011738,2]
[323307788,1713883844492,-500.0,0.00011738,2]
[323307790,1713883844501,-500.0,0.00011738,2]
[323307793,1713883844512,-500.0,0.00011738,2]
[323307794,1713883844521,-1077.2,0.00011738,2]
[323307797,1713883844530,-500.0,0.00011738,2]
[323307799,1713883844540,-500.0,0.00011738,2]
[323307801,1713883844549,-500.0,0.00011738,2]
[323307803,1713883844558,-500.0,0.00011738,2]
[323307804,1713883844566,-500.0,0.00011738,2]
[323307806,1713883844575,-500.0,0.00011738,2]
[323307808,1713883844584,-750.98,0.00011738,2]
[323307809,1713883844593,-581.78,0.00011738,2]
[323307811,1713883844602,-500.0,0.00011738,2]
[323307813,1713883844611,-757.49,0.00011738,2]
[323307814,1713883844620,-500.0,0.00011738,2]
[323307816,1713883844629,-500.0,0.00011738,2]
[323307818,1713883844638,-500.0,0.00011738,2]
[323307819,1713883844647,-500.0,0.00011738,2]
[323307821,1713883844656,-507.43989857,0.00011738,2]
[323307823,1713883844665,-630.94578865,0.00011738,2]
[323307824,1713883844675,-1096.15,0.00011738,2]
[323307826,1713883844685,-730.2,0.00011738,2]
[323307828,1713883844693,-550.45,0.00011738,2]
[323307829,1713883844702,-1000.0,0.00011738,2]
[323307831,1713883844712,-500.0,0.00011738,2]
[323307833,1713883844721,-539.32,0.00011738,2]
[323307834,1713883844729,-500.0,0.00011738,2]
[323307836,1713883844738,-504.85,0.00011738,2]